fUST/lending_fUST_20250324
["ID","MTS","AMOUNT","RATE_DAILY","PERIOD"]
[356607805,1742812232134,-500.0,0.00012284,2]
[356607806,1742812232143,-500.0,0.00012284,2]
[356607807,1742812232153,-500.0,0.00012284,2]
[356607808,1742812232163,-500.0,0.00012284,2]
[356607809,1742812232172,-500.0,0.00012284,2]
[356607810,1742812232181,-500.0,0.00012284,2]
[356607811,1742812232190,-500.0,0.00012284,2]
[356607812,1742812232199,-500.0,0.00012284,2]
[356607814,1742812232208,-500.0,0.00012284,2]
[356607816,1742812232217,-500.0,0.00012284,2]
[356607818,1742812232226,-500.0,0.00012284,2]
[356607820,1742812232235,-500.0,0.00012284,2]
[356607822,1742812232244,-500.0,0.00012284,2]
[356607824,1742812232253,-500.0,0.00012284,2]
[356607826,1742812232262,-500.0,0.00012284,2]
[356607827,1742812232271,-500.0,0.00012284,2]
[356607828,1742812232281,-500.0,0.00012284,2]
[356607829,1742812232290,-500.0,0.00012284,2]
[356607830,1742812232299,-240.53434544,0.00012284,2]
[356607831,1742812232308,-500.0,0.00012285,2]
[356607832,1742812232318,-573.25306234,0.00012285,2]
[356607833,1742812232327,-10000.0,0.00012286,2]
[356607834,1742812232338,-505.55,0.00012292,2]
[356607835,1742812232349,-500.0,0.00012292,2]
[356607836,1742812232359,-500.0,0.00012292,2]
[356607837,1742812232368,-176.438,0.0001239,2]
[356607838,1742812232377,-185.58708785,0.000125,2]
[356607839,1742812232387,-150.0,0.00012571,2]
[356607840,1742812232397,-222.58828444,0.00012653,2]
[356607841,1742812232407,-3387.58308198,0.000129,2]
[356607864,1742812237831,-777.49989616,0.000129,2]
[356607866,1742812237841,-152.0,0.00012923,2]
[356607868,1742812237851,-161.66653561,0.00012951,2]
[356607869,1742812237860,-8.72221087,0.0001305,3]
[356607870,1742812237872,-911.94749805,0.0001305,3]
[356607871,1742812237884,-21867.66035426,0.0001305,3]
[356607872,1742812237906,-2209.70142592,0.0001305,3]
[356607977,1742812243682,-250.0,0.0001207,2]
[356607978,1742812243692,-6766.19570103,0.0001305,3]
[356607985,1742812246141,-379.21825036,0.0001305,3]
[356607986,1742812246154,-3239.8,0.0001305,3]
[356607992,1742812542101,186.8748709,0.00011897,2]
[356607993,1742812545421,150.0,0.0001202,2]
[356607994,1742812800841,169.4732242,0.00011906,2]
[356607998,1742812923939,7780.1844901,0.00011992,2]
[356608000,1742813046029,150.2,0.00011992,2]
[356608001,1742813059311,150.2,0.00012,2]
[356608004,1742813292882,24900.0,0.00011535,2]
[356608005,1742813334646,250.0,0.00011859,2]
[356608006,1742813349141,-159.40929735,0.00012103,2]
[356608068,1742813437991,-37.89515185,0.00012103,2]
[356608069,1742813438000,-1079.29593793,0.00012527,2]
[356608070,1742813438011,-300.0,0.00012534,2]
[356608071,1742813438024,-500.0,0.00012534,2]
[356608072,1742813438034,-500.0,0.00012534,2]
[356608073,1742813438043,-288.77371256,0.00012534,2]
[356608074,1742813438053,-500.0,0.00012535,2]
[356608075,1742813438062,-500.0,0.00012535,2]
[356608076,1742813438072,-500.0,0.00012535,2]
[356608077,1742813438081,-500.0,0.00012535,2]
[356608078,1742813438090,-500.0,0.00012535,2]
[356608079,1742813438100,-500.0,0.00012535,2]
[356608080,1742813438109,-500.0,0.00012535,2]
[356608081,1742813438119,-500.0,0.00012535,2]
[356608082,1742813438128,-500.0,0.00012535,2]
[356608083,1742813438137,-500.0,0.00012535,2]
[356608084,1742813438147,-500.0,0.00012535,2]
[356608085,1742813438157,-472.41230055,0.00012535,2]
[356608134,1742813440461,-27.58769945,0.00012535,2]
[356608136,1742813440471,-500.0,0.00012535,2]
[356608138,1742813440480,-500.0,0.00012535,2]
[356608140,1742813440490,-500.0,0.00012535,2]
[356608142,1742813440499,-500.0,0.00012535,2]
[356608144,1742813440509,-500.0,0.00012535,2]
[356608146,1742813440518,-500.0,0.00012535,2]
[356608148,1742813440527,-500.0,0.00012535,2]
[356608150,1742813440536,-500.0,0.00012535,2]
[356608152,1742813440545,-176.43943484,0.00012536,2]
[356608154,1742813440555,-151.1807645,0.00012707,2]
[356608155,1742813440563,-3644.44760582,0.000129,2]
[356608157,1742813440573,-574.02501093,0.00012949,2]
[356608160,1742813440583,-258.16253251,0.00012949,2]
[356608162,1742813440593,-150.2,0.00013,2]
[356608164,1742813440603,-152.0,0.0001303,2]
[356608166,1742813440612,-500.0,0.00013048,2]
[356608168,1742813440622,-450.39589139,0.00013048,2]
[356608170,1742813440631,-21794.6910761,0.00013049,3]
[356608172,1742813440641,-165.28191878,0.00013049,2]
[356608174,1742813440651,-30477.68680381,0.0001305,3]
[356608176,1742813440660,-151.0,0.0001305,2]
[356608178,1742813440670,-317.10316592,0.00013051,2]
[356608180,1742813440679,-574.02501089,0.00013112,2]
[356608182,1742813440689,-536.8243772,0.00013262,2]
[356608184,1742813440699,-574.02501089,0.00013274,2]
[356608186,1742813440708,-7046.9425281,0.00013365,2]
[356608188,1742813440717,-574.02501089,0.00013437,2]
[356608190,1742813440727,-151.0,0.00013534,2]
[356608192,1742813440738,-150.4807167,0.00013534,2]
[356608194,1742813440747,-574.02501089,0.00013599,2]
[356608196,1742813440757,-275.94971,0.00013599,2]
[356608198,1742813440767,-4271.3745985,0.00013599,2]
[356608200,1742813440777,-181.08581747,0.00013672,2]
[356608202,1742813440787,-491.74215961,0.00013673,2]
[356608204,1742813440796,-504.97646592,0.00013673,2]
[356608206,1742813440806,-354.39088526,0.00013673,2]
[356608208,1742813440816,-500.0,0.00013673,2]
[356608210,1742813440825,-500.0,0.00013673,2]
[356608212,1742813440834,-501.55283006,0.00013673,2]
[356608214,1742813440844,-500.0,0.00013673,2]
[356608217,1742813440854,-506.08151912,0.00013673,2]
[356608219,1742813440863,-502.02566751,0.00013673,2]
[356608221,1742813440873,-426.40299411,0.00013673,2]
[356608223,1742813440882,-500.0,0.00013673,2]
[356608225,1742813440892,-500.0,0.00013673,2]
[356608227,1742813440902,-519.41035929,0.00013673,2]
[356608229,1742813440911,-157.77969867,0.00013673,2]
[356608231,1742813440921,-211.22569232,0.00013673,2]
[356608233,1742813440931,-500.0,0.00013673,2]
[356608235,1742813440942,-500.0,0.00013673,2]
[356608237,1742813440953,-504.53610861,0.00013673,2]
[356608238,1742813440962,-500.0,0.00013673,2]
[356608240,1742813440971,-500.0,0.00013673,2]
[356608242,1742813440982,-500.0,0.00013673,2]
[356608244,1742813440991,-163.64232074,0.00013673,2]
[356608246,1742813441001,-177.12065203,0.00013673,2]
[356608249,1742813441010,-500.0,0.00013673,2]
[356608250,1742813441023,-514.35385258,0.00013673,2]
[356608253,1742813441033,-500.0,0.00013673,2]
[356608254,1742813441043,-461.69155109,0.00013673,2]
[356608257,1742813441052,-500.0,0.00013673,2]
[356608259,1742813441062,-503.46131949,0.00013673,2]
[356608261,1742813441071,-184.77823346,0.00013673,2]
[356608263,1742813441080,-160.68278289,0.00013673,2]
[356608265,1742813441090,-508.00719248,0.00013673,2]
[356608267,1742813441100,-500.0,0.00013673,2]
[356608269,1742813441110,-500.0,0.00013673,2]
[356608271,1742813441119,-153.29506195,0.00013673,2]
[356608273,1742813441128,-504.9217824,0.00013673,2]
[356608275,1742813441138,-500.0,0.00013673,2]
[356608277,1742813441147,-503.04859962,0.00013673,2]
[356608279,1742813441157,-500.0,0.00013673,2]
[356608295,1742813441300,-502.59778673,0.00013673,2]
[356608297,1742813441312,-500.0,0.00013673,2]
[356608299,1742813441322,-504.04818575,0.00013673,2]
[356608301,1742813441332,-503.26311424,0.00013673,2]
[356608303,1742813441342,-500.0,0.00013673,2]
[356608305,1742813441352,-166.62711121,0.00013673,2]
[356608307,1742813441362,-500.0,0.00013673,2]
[356608309,1742813441372,-508.30816658,0.00013673,2]
[356608311,1742813441382,-292.36372137,0.00013673,2]
[356608313,1742813441391,-417.36699096,0.00013673,2]
[356608315,1742813441401,-500.0,0.00013673,2]
[356608317,1742813441411,-151.0,0.00013673,2]
[356608319,1742813441421,-151.0,0.00013673,2]
[356608321,1742813441430,-151.0,0.00013673,2]
[356608323,1742813441439,-151.0,0.00013673,2]
[356608325,1742813441449,-177.63394,0.00013673,2]
[356608327,1742813441458,-1898.971237,0.00013699,2]
[356608329,1742813441467,-1101.94204673,0.00013699,2]
[356608331,1742813441481,-1101.94204673,0.00013699,2]
[356608333,1742813441490,-500.0,0.00013699,2]
[356608335,1742813441500,-1101.94204673,0.00013699,2]
[356608337,1742813441509,-1101.94204673,0.00013699,2]
[356608339,1742813441519,-1101.94204673,0.00013699,2]
[356608341,1742813441528,-500.0,0.00013699,2]
[356608343,1742813441538,-1101.94204673,0.00013699,2]
[356608345,1742813441548,-1101.94204673,0.00013699,2]
[356608347,1742813441557,-500.0,0.00013699,2]
[356608349,1742813441568,-1101.94204673,0.00013699,2]
[356608351,1742813441578,-1101.94204673,0.00013699,2]
[356608353,1742813441588,-500.0,0.00013699,2]
[356608356,1742813441598,-1101.94204673,0.00013699,2]
[356608358,1742813441608,-1101.94204673,0.00013699,2]
[356608360,1742813441617,-265.1596131,0.00013699,2]
[356608362,1742813441626,-1101.94204673,0.00013699,2]
[356608364,1742813441636,-1101.94204673,0.00013699,2]
[356608366,1742813441645,-1101.94204673,0.00013699,2]
[356608368,1742813441654,-1101.94204673,0.00013699,2]
[356608370,1742813441663,-1101.94204673,0.00013699,2]
[356608372,1742813441672,-1101.94204673,0.00013699,2]
[356608374,1742813441682,-1101.94204673,0.00013699,2]
[356608376,1742813441691,-1101.94204673,0.00013699,2]
[356608377,1742813441699,-1101.94204673,0.00013699,2]
[356608380,1742813441709,-1101.94204673,0.00013699,2]
[356608381,1742813441718,-1101.94204673,0.00013699,2]
[356608384,1742813441730,-1101.94204673,0.00013699,2]
[356608386,1742813441739,-1101.94204673,0.00013699,2]
[356608387,1742813441748,-1101.94204673,0.00013699,2]
[356608390,1742813441757,-1101.94204673,0.00013699,2]
[356608392,1742813441767,-1101.94204673,0.00013699,2]
[356608394,1742813441776,-1101.94204673,0.00013699,2]
[356608396,1742813441785,-1101.94204673,0.00013699,2]
[356608398,1742813441795,-1101.94204673,0.00013699,2]
[356608400,1742813441804,-1101.94204673,0.00013699,2]
[356608402,1742813441814,-1101.94204673,0.00013699,2]
[356608404,1742813441824,-1101.94204673,0.00013699,2]
[356608406,1742813441833,-1101.94204673,0.00013699,2]
[356608408,1742813441844,-1101.94204673,0.00013699,2]
[356608410,1742813441854,-1101.94204673,0.00013699,2]
[356608412,1742813441865,-1101.94204673,0.00013699,2]
[356608414,1742813441875,-1101.94204673,0.00013699,2]
[356608416,1742813441885,-1101.94204673,0.00013699,2]
[356608418,1742813441894,-1101.94204673,0.00013699,2]
[356608420,1742813441904,-1101.94204673,0.00013699,2]
[356608422,1742813441913,-1101.94204673,0.00013699,2]
[356608424,1742813441923,-1101.94204673,0.00013699,2]
[356608426,1742813441932,-1101.94204673,0.00013699,2]
[356608428,1742813441943,-1101.94204673,0.00013699,2]
[356608430,1742813441954,-1101.94204673,0.00013699,2]
[356608432,1742813441963,-1101.94204673,0.00013699,2]
[356608434,1742813441974,-1101.94204673,0.00013699,2]
[356608436,1742813441985,-1101.94204673,0.00013699,2]
[356608438,1742813441995,-1101.94204673,0.00013699,2]
[356608440,1742813442004,-1101.94204673,0.00013699,2]
[356608442,1742813442013,-1101.94204673,0.00013699,2]
[356608444,1742813442025,-1101.94204673,0.00013699,2]
[356608446,1742813442035,-1101.94204673,0.00013699,2]
[356608448,1742813442045,-1101.94204673,0.00013699,2]
[356608450,1742813442055,-1101.94204673,0.00013699,2]
[356608452,1742813442064,-1101.94204673,0.00013699,2]
[356608454,1742813442073,-1101.94204673,0.00013699,2]
[356608456,1742813442082,-1101.94204673,0.00013699,2]
[356608458,1742813442092,-1101.94204673,0.00013699,2]
[356608460,1742813442101,-1101.94204673,0.00013699,2]
[356608462,1742813442110,-1101.94204673,0.00013699,2]
[356608464,1742813442119,-1101.94204673,0.00013699,2]
[356608466,1742813442128,-1101.94204673,0.00013699,2]
[356608468,1742813442138,-1101.94204673,0.00013699,2]
[356608470,1742813442146,-1101.94204673,0.00013699,2]
[356608472,1742813442155,-1101.94204673,0.00013699,2]
[356608474,1742813442164,-1101.94204673,0.00013699,2]
[356608476,1742813442173,-1101.94204673,0.00013699,2]
[356608478,1742813442182,-1101.94204673,0.00013699,2]
[356608480,1742813442191,-8896.71538838,0.00013699,2]
[356608482,1742813442200,-8896.71538838,0.00013699,2]
[356608484,1742813442210,-8896.71538838,0.00013699,2]
[356608486,1742813442221,-8896.71538838,0.00013699,2]
[356608488,1742813442230,-8896.71538838,0.00013699,2]
[356608490,1742813442240,-8896.71538838,0.00013699,2]
[356608493,1742813442249,-8896.71538838,0.00013699,2]
[356608494,1742813442258,-8896.71538838,0.00013699,2]
[356608495,1742813442267,-5994.99704868,0.00013699,2]
[356608633,1742813443313,-124.61937981,0.00013699,2]
[356608816,1742813446241,-2777.09895989,0.00013699,2]
[356608817,1742813446373,-152.25103765,0.00013699,2]
[356608859,1742814042518,-2000.0,0.00016,120]
[356608860,1742814044474,-2000.0,0.00016,120]
[356608861,1742814045216,-2000.0,0.00016,120]
[356608862,1742814045850,-2000.0,0.00016,120]
[356608863,1742814046555,-2000.0,0.00016,120]
[356608864,1742814047258,-2000.0,0.00016,120]
[356608865,1742814047896,-2000.0,0.00016,120]
[356608866,1742814067751,-1000.0,0.00016,120]
[356608867,1742814070076,-1000.0,0.00016,120]
[356608868,1742814076149,-500.0,0.00016,120]
[356608869,1742814104328,-150.0,0.00016,120]
[356608870,1742814105297,-150.0,0.00016,120]
[356608871,1742814113592,-200.0,0.00016,120]
[356608872,1742814114419,-200.0,0.00016,120]
[356608873,1742814125628,-200.0,0.00016,120]
[356608874,1742814130553,-200.0,0.00016,120]
[356608875,1742814131880,-200.0,0.00016,120]
[356608876,1742814132630,-200.0,0.00016,120]
[356608877,1742814153926,-500.0,0.00016,120]
[356608878,1742814154761,-500.0,0.00016,120]
[356608880,1742814205857,505.0,0.0001202,2]
[356608887,1742814356999,-153.0,0.0001207,2]
[356608888,1742814364391,-300.0,0.00012069,2]
[356608889,1742814376478,-500.0,0.0001207,2]
[356608890,1742814395593,-168.26205117,0.00012069,2]
[356608891,1742814406108,-168.26205117,0.00012069,2]
[356608892,1742814407866,-163.47589766,0.00012069,2]
[356608893,1742814422466,-150.4537898,0.00012069,2]
[356608898,1742814484832,-300.0,0.00012069,2]
[356608899,1742814489348,-273.97348539,0.00012069,2]
[356608900,1742814507344,-200.11163789,0.00012069,2]
[356608901,1742814507370,-168.26205117,0.00012069,2]
[356608902,1742814507396,-3.9851986,0.00012069,2]
[356608903,1742814525060,250.0,0.00011966,2]
[356608904,1742814525285,-158.66832319,0.00012069,2]
[356608905,1742814533629,158.66832319,0.0001202,2]
[356608906,1742814553147,-169.08442704,0.00012069,2]
[356608907,1742814553169,-351.40070548,0.00012069,2]
[356608908,1742814553192,-573.97348539,0.00012069,2]
[356608909,1742814553214,-99.28173666,0.00012069,2]
[356608910,1742814604362,-289.27018504,0.00012069,2]
[356608911,1742814609514,289.27018504,0.0001202,2]
[356608947,1742814632372,-10.72981496,0.00012069,2]
[356608949,1742814632382,-273.077151,0.00012069,2]
[356608951,1742814632394,-1138.41744919,0.0001207,2]
[356608955,1742814632427,-23108.58255081,0.0001207,2]
[356608957,1742814632436,-500.0,0.00012219,2]
[356608959,1742814632446,-165.27712398,0.00012219,2]
[356608961,1742814632455,-7090.8904971,0.0001222,2]
[356608963,1742814632464,-448.19620359,0.000125,7]
[356608965,1742814632481,-51.80379641,0.000125,7]
[356608967,1742814632490,-500.0,0.000125,7]
[356608969,1742814632499,-477.25207067,0.000125,7]
[356608974,1742814632535,-22.74792933,0.000125,7]
[356608976,1742814632545,-500.0,0.000125,7]
[356608978,1742814632554,-500.0,0.000125,7]
[356608980,1742814632563,-500.0,0.000125,7]
[356608982,1742814632573,-500.0,0.000125,7]
[356608984,1742814632582,-500.0,0.000125,7]
[356608986,1742814632591,-500.0,0.000125,7]
[356608988,1742814632601,-500.0,0.000125,7]
[356608990,1742814632610,-500.0,0.000125,7]
[356608992,1742814632619,-500.0,0.000125,7]
[356608994,1742814632629,-500.0,0.000125,7]
[356608996,1742814632638,-472.88,0.000125,7]
[356608998,1742814632647,-376.68318699,0.000125,2]
[356609000,1742814632656,-220.067555,0.0001256,2]
[356609002,1742814632666,-7730.335949,0.00012743,2]
[356609004,1742814632675,-3769.88953371,0.000129,2]
[356609006,1742814632684,-203.48237797,0.00012962,2]
[356609007,1742814632694,-220.067555,0.00013062,2]
[356609008,1742814632703,-203.48237796,0.00013096,2]
[356609009,1742814632712,-203.48237796,0.00013231,2]
[356609010,1742814632722,-420.0,0.00013248,2]
[356609011,1742814632731,-203.48237796,0.00013365,2]
[356609012,1742814632740,-203.48237796,0.00013499,2]
[356609013,1742814632749,-3190.02323575,0.00013499,2]
[356609014,1742814632759,-359.33530933,0.00013573,2]
[356609015,1742814632768,-500.0,0.00013573,2]
[356609016,1742814632777,-500.0,0.00013573,2]
[356609017,1742814632787,-500.0,0.00013573,2]
[356609018,1742814632796,-500.0,0.00013573,2]
[356609019,1742814632806,-500.0,0.00013573,2]
[356609021,1742814632815,-500.15365177,0.00013573,2]
[356609023,1742814632824,-638.7935135,0.00013573,2]
[356609025,1742814632833,-500.0,0.00013573,2]
[356609027,1742814632843,-500.0,0.00013573,2]
[356609029,1742814632852,-500.0,0.00013573,2]
[356609031,1742814632860,-500.0,0.00013573,2]
[356609032,1742814632870,-500.0,0.00013573,2]
[356609034,1742814632879,-500.0,0.00013573,2]
[356609036,1742814632888,-500.0,0.00013573,2]
[356609038,1742814632897,-500.0,0.00013573,2]
[356609040,1742814632906,-500.0,0.00013573,2]
[356609043,1742814632916,-500.0,0.00013573,2]
[356609044,1742814632925,-500.0,0.00013573,2]
[356609047,1742814632935,-500.0,0.00013573,2]
[356609049,1742814632945,-500.0,0.00013573,2]
[356609051,1742814632954,-500.0,0.00013573,2]
[356609053,1742814632963,-500.0,0.00013573,2]
[356609055,1742814632973,-151.0,0.00013591,2]
[356609057,1742814632982,-1000.0,0.00013591,2]
[356609059,1742814632991,-600.0,0.00013591,2]
[356609061,1742814633000,-295.64339287,0.00013593,2]
[356609063,1742814633010,-401.98743882,0.00013596,2]
[356609064,1742814633019,-198.80120454,0.00013599,2]
[356609066,1742814633028,-322000.0,0.00013599,2]
[356609068,1742814633038,-5000.0,0.00013599,2]
[356609070,1742814633047,-151.0,0.00013599,2]
[356609072,1742814633057,-151.0,0.00013599,2]
[356609074,1742814633068,-250.759026,0.00013599,2]
[356609076,1742814633077,-250.759026,0.00013599,2]
[356609078,1742814633086,-622.2,0.00013646,2]
[356609080,1742814633096,-10000.0,0.00013697,3]
[356609082,1742814633105,-181.08581747,0.00013698,2]
[356609084,1742814633115,-40413.8995307,0.00013698,3]
[356609086,1742814633124,-151.0,0.00013698,2]
[356609088,1742814633133,-151.0,0.00013698,2]
[356609090,1742814633146,-250.759026,0.00013698,2]
[356609092,1742814633157,-250.759026,0.00013698,2]
[356609094,1742814633166,-949.485618,0.00013699,2]
[356609096,1742814633176,-151.0,0.00013699,2]
[356609098,1742814633185,-151.0,0.00013699,2]
[356609100,1742814633196,-151.0,0.00013699,2]
[356609103,1742814633206,-151.0,0.00013699,2]
[356609104,1742814633216,-151.0,0.00013699,2]
[356609106,1742814633226,-151.0,0.00013699,2]
[356609109,1742814633237,-178.19470313,0.00013699,2]
[356609111,1742814633247,-150.21,0.00013699,2]
[356609113,1742814633258,-150.21,0.00013699,2]
[356609115,1742814633268,-500.0,0.00013699,2]
[356609117,1742814633278,-500.0,0.00013699,2]
[356609119,1742814633288,-500.0,0.00013699,2]
[356609121,1742814633297,-199.97923872,0.00013699,2]
[356609123,1742814633307,-150.21,0.00013699,2]
[356609125,1742814633317,-292.29783381,0.00013699,2]
[356609127,1742814633327,-150.21,0.00013699,2]
[356609129,1742814633337,-150.21,0.00013699,2]
[356609131,1742814633347,-500.0,0.00013699,2]
[356609133,1742814633359,-150.21,0.00013699,2]
[356609135,1742814633369,-150.21,0.00013699,2]
[356609137,1742814633378,-153.48955665,0.00013699,2]
[356609139,1742814633388,-150.21,0.00013699,2]
[356609141,1742814633399,-150.21,0.00013699,2]
[356609143,1742814633408,-168.18907353,0.00013699,2]
[356609145,1742814633418,-150.21,0.00013699,2]
[356609147,1742814633428,-500.0,0.00013699,2]
[356609149,1742814633439,-500.0,0.00013699,2]
[356609151,1742814633449,-1178.57665013,0.00013699,2]
[356609153,1742814633458,-251.68440146,0.00013699,2]
[356609155,1742814633468,-1178.57665013,0.00013699,2]
[356609157,1742814633478,-1178.57665013,0.00013699,2]
[356609159,1742814633488,-1178.57665013,0.00013699,2]
[356609161,1742814633498,-1178.57665013,0.00013699,2]
[356609163,1742814633508,-1178.57665013,0.00013699,2]
[356609165,1742814633517,-1178.57665013,0.00013699,2]
[356609167,1742814633528,-1178.57665013,0.00013699,2]
[356609169,1742814633537,-1178.57665013,0.00013699,2]
[356609171,1742814633547,-1178.57665013,0.00013699,2]
[356609173,1742814633556,-1178.57665013,0.00013699,2]
[356609175,1742814633565,-1178.57665013,0.00013699,2]
[356609177,1742814633574,-1178.57665013,0.00013699,2]
[356609179,1742814633584,-1178.57665013,0.00013699,2]
[356609181,1742814633593,-1178.57665013,0.00013699,2]
[356609183,1742814633603,-1178.57665013,0.00013699,2]
[356609185,1742814633613,-1178.57665013,0.00013699,2]
[356609187,1742814633623,-1178.57665013,0.00013699,2]
[356609189,1742814633632,-1178.57665013,0.00013699,2]
[356609191,1742814633641,-1178.57665013,0.00013699,2]
[356609193,1742814633651,-1178.57665013,0.00013699,2]
[356609195,1742814633661,-1178.57665013,0.00013699,2]
[356609198,1742814633672,-1178.57665013,0.00013699,2]
[356609200,1742814633681,-1178.57665013,0.00013699,2]
[356609202,1742814633691,-1178.57665013,0.00013699,2]
[356609204,1742814633700,-1178.57665013,0.00013699,2]
[356609206,1742814633709,-1178.57665013,0.00013699,2]
[356609208,1742814633719,-1178.57665013,0.00013699,2]
[356609210,1742814633728,-1178.57665013,0.00013699,2]
[356609212,1742814633737,-1178.57665013,0.00013699,2]
[356609214,1742814633746,-1178.57665013,0.00013699,2]
[356609216,1742814633757,-1178.57665013,0.00013699,2]
[356609218,1742814633766,-1178.57665013,0.00013699,2]
[356609220,1742814633777,-1178.57665013,0.00013699,2]
[356609222,1742814633786,-1178.57665013,0.00013699,2]
[356609224,1742814633796,-1178.57665013,0.00013699,2]
[356609226,1742814633805,-1178.57665013,0.00013699,2]
[356609228,1742814633815,-1178.57665013,0.00013699,2]
[356609230,1742814633824,-1178.57665013,0.00013699,2]
[356609232,1742814633834,-1178.57665013,0.00013699,2]
[356609234,1742814633843,-1178.57665013,0.00013699,2]
[356609236,1742814633852,-1035.51102648,0.00013699,2]
[356609739,1742814643495,-143.06562365,0.00013699,2]
[356609741,1742814643505,-1178.57665013,0.00013699,2]
[356609744,1742814643514,-1178.57665013,0.00013699,2]
[356609747,1742814643525,-1178.57665013,0.00013699,2]
[356609750,1742814643538,-1178.57665013,0.00013699,2]
[356609755,1742814643548,-1178.57665013,0.00013699,2]
[356609758,1742814643559,-1178.57665013,0.00013699,2]
[356609761,1742814643568,-1178.57665013,0.00013699,2]
[356609764,1742814643578,-1178.57665013,0.00013699,2]
[356609767,1742814643588,-1178.57665013,0.00013699,2]
[356609770,1742814643597,-768.44077857,0.00013699,2]
[356609835,1742814645077,-0.0100225,0.00013699,2]
[356609859,1742814646360,-410.12584906,0.00013699,2]
[356609860,1742814646370,-1178.57665013,0.00013699,2]
[356609861,1742814646381,-1178.57665013,0.00013699,2]
[356609862,1742814646393,-1178.57665013,0.00013699,2]
[356609863,1742814646403,-1178.57665013,0.00013699,2]
[356609864,1742814646414,-1178.57665013,0.00013699,2]
[356609865,1742814646423,-1178.57665013,0.00013699,2]
[356609866,1742814646432,-1178.57665013,0.00013699,2]
[356609867,1742814646443,-1178.57665013,0.00013699,2]
[356609868,1742814646453,-1178.57665013,0.00013699,2]
[356609869,1742814646463,-480.95357617,0.00013699,2]
[356609870,1742814646475,-697.62307396,0.00013699,2]
[356609871,1742814646484,-1178.57665013,0.00013699,2]
[356609872,1742814646493,-1178.57665013,0.00013699,2]
[356609873,1742814646503,-1178.57665013,0.00013699,2]
[356609874,1742814646512,-1178.57665013,0.00013699,2]
[356609875,1742814646522,-1142.31275321,0.00013699,2]
[356609876,1742814646532,-1142.31275321,0.00013699,2]
[356609877,1742814646541,-1142.31275321,0.00013699,2]
[356609878,1742814646551,-1142.31275321,0.00013699,2]
[356609879,1742814646560,-1018.81931268,0.00013699,2]
[356609880,1742814657096,3000.0,0.00012,2]
[356609881,1742814679775,5000.0,0.0001197,2]
[356609885,1742815637437,-174.4432553,0.00012354,2]
[356609886,1742815639125,-1330.57234632,0.00012354,2]
[356609887,1742815639152,-152.18158977,0.00012479,2]
[356609888,1742815639176,-8784.17618765,0.0001248,2]
[356609897,1742815739948,-573.97348539,0.00012246,2]
[356609898,1742815813516,-573.97348539,0.00012057,2]
[356609928,1742815832601,-760.25577531,0.00012057,2]
[356609951,1742815833299,-573.97348539,0.00012057,2]
[356609973,1742815840771,-0.00195865,0.00012057,2]
[356609974,1742815840786,-394.119,0.00012057,2]
[356609975,1742815841667,-573.97348539,0.00012057,2]
[356609994,1742815843743,-24.36204805,0.00012057,2]
[356610010,1742815846527,-438.71,0.00012057,2]
[356610011,1742815846540,-356.18864172,0.00012057,2]
[356610012,1742815846550,-94.66543211,0.00012246,2]
[356610013,1742815846560,-520.396726,0.0001237,2]
[356610014,1742815846570,-573.97348539,0.00012479,2]
[356610015,1742815846580,-573.97348539,0.00012479,2]
[356610016,1742815846590,-573.97348539,0.00012479,2]
[356610017,1742815846600,-300.0,0.00012479,2]
[356610018,1742815846610,-1736.82874405,0.0001248,2]
[356610030,1742816535777,-386.57445039,0.00012151,2]
[356610031,1742816545362,386.57445039,0.0001202,2]
[356610032,1742816556434,-151.43978675,0.0001215,2]
[356610033,1742816561560,151.43978675,0.0001202,2]
[356610034,1742816583739,-216.27639552,0.0001215,2]
[356610035,1742816643954,-175.94056,0.0001215,2]
[356610036,1742816843134,-30.31674312,0.0001215,2]
[356610037,1742816843158,-300.0,0.0001215,2]